bitfinex/quotes_SOLUSD_20240711
["timestamp","ask_amount","ask_price","bid_price","bid_amount"]
[1720687916468,20.23505407,142.78,142.7,11.59]
[1720687916792,11.59,142.78,142.74,11.59]
[1720687916966,11.59,142.78,142.73,11.59]
[1720687917164,11.59,142.78,142.72,23.0784]
[1720687917473,11.59,142.77,142.73,11.59]
[1720687917687,11.59,142.77,142.72,34.6684]
[1720687918278,11.59,142.76,142.72,23.0784]
[1720687918457,11.59,142.75,142.69,6.2408]
[1720687918669,11.59,142.74,142.69,17.8308]
[1720687920083,46.36,142.8,142.7,12.99119173]
[1720687920382,11.59,142.76,142.71,12.99107982]
[1720687921090,11.59,142.75,142.71,1.40107982]
[1720687921372,46.36,142.8,142.69,6.2408]
[1720687921373,11.59,142.74,142.69,6.2408]
[1720687921586,46.36,142.8,142.69,6.2408]
[1720687921587,11.59,142.73,142.69,6.2408]
[1720687921955,11.59,142.74,142.69,17.8308]
[1720687922152,11.59,142.75,142.7,11.59]
[1720687922776,11.59,142.75,142.71,1.39770089]
[1720687922985,11.59,142.76,142.71,1.39770089]
[1720687923290,11.59,142.76,142.71,12.98770089]
[1720687923878,11.59,142.76,142.72,11.59]
[1720687924287,16.3024,142.81,142.72,11.59]
[1720687924493,20.23283312,142.8,142.72,11.59]
[1720687924792,11.59,142.78,142.73,11.59]
[1720687925171,7.82953616,142.86,142.74,11.59]
[1720687925172,11.59,142.79,142.74,11.59]
[1720687925490,11.59,142.79,142.75,11.59]
[1720687926266,11.59,142.8,142.75,11.59]
[1720687926470,11.59,142.81,142.76,11.59]
[1720687927487,12.6434715,142.8,142.76,11.59]
[1720687927789,11.59,142.81,142.76,11.59]
[1720687928160,12.64347262,142.8,142.76,11.59]
[1720687928479,11.59,142.81,142.76,11.59]
[1720687928676,12.6440804,142.8,142.76,11.59]
[1720687928894,11.59,142.79,142.75,11.59]
[1720687929199,11.59,142.77,142.73,21.5075]
[1720687929373,11.59,142.76,142.7,6.4653]
[1720687929583,11.59,142.76,142.71,31.59]
[1720687929899,11.59,142.75,142.71,20.0]
[1720687930767,11.59,142.75,142.7,18.0553]
[1720687930968,11.59,142.73,142.7,6.4653]
[1720687931867,11.59,142.74,142.7,6.4653]
[1720687932068,11.59,142.73,142.7,6.4653]
[1720687932672,11.59,142.73,142.69,27.4103]
[1720687933603,11.59,142.74,142.69,27.4103]
[1720687935001,15.5101,142.79,142.69,15.8203]
[1720687935164,11.59,142.77,142.72,11.59]
[1720687935486,15.5101,142.79,142.72,11.59]
[1720687935788,12.64558977,142.78,142.71,6.4039]
[1720687935992,11.59,142.74,142.71,6.4039]
[1720687936371,11.59,142.73,142.69,15.8203]
[1720687936888,11.59,142.74,142.69,27.4103]
[1720687938070,15.5101,142.79,142.69,27.4103]
[1720687938271,11.59,142.74,142.69,27.4103]
[1720687940170,11.59,142.73,142.69,27.4103]
[1720687940598,11.59,142.73,142.69,15.8203]
[1720687940900,11.59,142.73,142.69,27.4103]
[1720687941389,11.59,142.74,142.69,27.4103]
[1720687941697,15.5101,142.79,142.71,11.59]
[1720687941886,11.59,142.77,142.72,11.59]
[1720687942487,11.59,142.77,142.73,1.40099596]
[1720687942691,11.59,142.77,142.72,11.59]
[1720687942890,11.59,142.76,142.71,11.59]
[1720687943276,15.5101,142.79,142.72,12.99098743]
[1720687943277,11.59,142.77,142.72,12.99098743]
[1720687943600,15.477,142.82,142.73,17.9782]
[1720687943804,11.59,142.78,142.74,1.40089161]
[1720687944292,24.23606119,142.77,142.73,6.3882]
[1720687944492,11.59,142.77,142.73,7.78913978]
[1720687944696,11.59,142.77,142.73,6.3882]
[1720687944891,11.59,142.76,142.73,6.3882]
[1720687945692,11.59,142.8,142.7,63.0846]
[1720687945897,11.59,142.75,142.7,63.0846]
[1720687946493,11.59,142.8,142.71,11.76]
[1720687946695,11.59,142.77,142.72,11.59]
[1720687947581,11.59,142.78,142.73,11.76]
[1720687947784,11.59,142.78,142.73,11.59]
[1720687948187,12.64558865,142.77,142.73,11.59]
[1720687948388,11.59,142.78,142.73,11.59]
[1720687948602,12.6455224,142.77,142.73,11.59]
[1720687948818,11.59,142.78,142.73,11.59]
[1720687949106,12.6455224,142.77,142.73,11.59]
[1720687949299,11.59,142.78,142.73,11.59]
[1720687949625,12.6455213,142.77,142.73,11.59]
[1720687949784,11.59,142.78,142.73,11.59]
[1720687949984,12.6455213,142.77,142.73,11.59]
[1720687950300,11.59,142.78,142.73,11.59]
[1720687950490,12.64552258,142.77,142.74,0.45968349]
[1720687950802,11.59,142.78,142.74,0.45968349]
[1720687951007,12.64543373,142.77,142.74,0.45968349]
[1720687951193,11.59,142.78,142.74,0.45968349]
[1720687951394,12.64540913,142.77,142.74,0.45968349]
[1720687951605,11.59,142.78,142.74,0.45968349]
[1720687951796,15.477,142.82,142.74,0.45968349]
[1720687951797,24.23536997,142.77,142.74,0.45968349]
[1720687952105,11.59,142.77,142.74,0.45968349]
[1720687952886,11.59,142.77,142.72,11.59]
[1720687952887,12.64576004,142.76,142.72,11.59]
[1720687953089,11.59,142.77,142.72,11.59]
[1720687953308,12.64585097,142.76,142.72,11.59]
[1720687953508,11.59,142.77,142.72,11.59]
[1720687953836,12.64590005,142.76,142.72,11.59]
[1720687953989,11.59,142.77,142.72,11.59]
[1720687954181,12.6459663,142.76,142.72,11.59]
[1720687954384,11.59,142.77,142.72,11.59]
[1720687954606,12.64596758,142.76,142.72,11.59]
[1720687954918,11.59,142.77,142.72,11.59]
[1720687955100,12.6459663,142.76,142.72,11.59]
[1720687955302,11.59,142.77,142.73,11.59]
[1720687955603,12.6459639,142.76,142.73,11.59]
[1720687955899,11.59,142.78,142.73,11.59]
[1720687956098,12.64542497,142.77,142.74,11.76]
[1720687956300,11.59,142.79,142.74,27.3208]
[1720687956508,12.64521802,142.78,142.74,27.3208]
[1720687956704,12.64521802,142.77,142.74,27.3208]
[1720687956882,11.59,142.79,142.74,27.3208]
[1720687957083,32.87783259,142.78,142.74,27.3208]
[1720687957325,12.64531865,142.77,142.74,27.3208]
[1720687957489,12.64531865,142.78,142.75,11.59]
[1720687957815,11.59,142.79,142.75,11.59]
[1720687958023,12.64426884,142.78,142.75,11.59]
[1720687958193,11.59,142.79,142.75,11.59]
[1720687958393,12.64426884,142.78,142.75,11.59]
[1720687958612,11.59,142.79,142.75,11.59]
[1720687958917,12.6441372,142.78,142.75,11.59]
[1720687959111,11.59,142.79,142.75,11.59]
[1720687959300,12.64411972,142.78,142.75,11.59]
[1720687959610,11.59,142.79,142.75,11.59]
[1720687959918,12.64411972,142.78,142.75,11.59]
[1720687960120,11.59,142.79,142.75,11.59]
[1720687960329,12.64418723,142.78,142.75,11.59]
[1720687960502,11.59,142.79,142.75,11.59]
[1720687960827,12.64418595,142.78,142.75,11.59]
[1720687961123,11.59,142.8,142.75,11.59]
[1720687961333,12.64408461,142.79,142.75,11.59]
[1720687961523,12.64408461,142.78,142.75,11.59]
[1720687961823,11.59,142.8,142.75,11.59]
[1720687962023,12.64408605,142.79,142.75,11.59]
[1720687962226,11.59,142.8,142.75,11.59]
[1720687962227,11.59,142.8,142.75,18.1476]
[1720687962397,12.64403362,142.79,142.75,18.1476]
[1720687962603,11.59,142.8,142.75,18.1476]
[1720687962798,12.64396612,142.79,142.75,18.1476]
[1720687963009,11.59,142.8,142.75,18.1476]
[1720687963217,12.64396835,142.79,142.75,18.1476]
[1720687963529,11.59,142.8,142.75,18.1476]
[1720687963704,12.64403586,142.79,142.75,18.1476]
[1720687964025,11.59,142.81,142.76,11.59]
[1720687964229,32.87448359,142.8,142.76,11.59]
[1720687964430,12.64402979,142.79,142.77,0.45985413]
[1720687964601,24.23402979,142.8,142.75,18.1476]
[1720687964801,12.64402979,142.79,142.75,18.1476]
[1720687965304,12.64402979,142.79,142.76,11.59]
[1720687965730,11.59,142.81,142.76,11.59]
[1720687965911,32.87447745,142.8,142.76,11.59]
[1720687966107,12.64402979,142.79,142.77,11.59]
[1720687966345,16.6516,142.85,142.78,11.59]
[1720687966528,11.59,142.82,142.77,11.59]
[1720687966732,12.64298982,142.81,142.77,11.59]
[1720687966916,11.59,142.82,142.78,11.59]
[1720687966917,12.64298982,142.8,142.78,11.59]
[1720687967113,11.59,142.82,142.78,11.59]
[1720687967427,12.64273639,142.81,142.78,11.59]
[1720687967607,11.59,142.83,142.78,11.59]
[1720687967810,32.87112999,142.82,142.78,11.59]
[1720687968034,12.6427423,142.81,142.78,11.59]
[1720687968233,11.59,142.83,142.78,11.59]
[1720687968438,44.46095451,142.82,142.78,11.59]
[1720687968610,12.64267481,142.81,142.77,11.59]
[1720687968808,12.64267481,142.81,142.78,0.17]
[1720687969343,12.64284602,142.8,142.78,0.17]
[1720687969523,11.59,142.82,142.78,0.17]
[1720687969729,12.64284474,142.81,142.78,11.76]
[1720687970033,11.59,142.82,142.78,11.76]
[1720687970233,12.64284474,142.81,142.78,11.76]
[1720687970424,11.59,142.82,142.78,11.76]
[1720687970736,12.64284602,142.81,142.78,11.76]
[1720687971030,11.59,142.82,142.78,11.76]
[1720687971229,12.64274598,142.81,142.78,0.17]
[1720687971434,11.59,142.81,142.76,0.17]
[1720687971622,11.59,142.8,142.76,57.1]
[1720687973436,16.6516,142.85,142.76,57.1]
[1720687973640,11.59,142.81,142.76,57.1]
[1720687973818,16.6516,142.85,142.76,57.1]
[1720687974135,11.59,142.81,142.76,57.1]
[1720687974330,16.6516,142.85,142.76,57.1]
[1720687974634,11.59,142.82,142.77,11.59]
[1720687974837,12.64272706,142.81,142.77,11.59]
[1720687975041,12.64272706,142.81,142.79,11.59]
[1720687975352,11.59,142.84,142.79,11.59]
[1720687975632,32.87090869,142.83,142.79,11.59]
[1720687976041,12.64264099,142.82,142.79,11.59]
[1720687976247,46.36,142.87,142.79,11.59]
[1720687976621,32.87072323,142.86,142.79,11.59]
[1720687976942,32.87072323,142.85,142.78,11.76]
[1720687977144,32.87072323,142.84,142.78,0.17]
[1720687977318,32.87072323,142.83,142.77,11.59]
[1720687977521,11.59,142.81,142.76,11.59]
[1720687979217,11.59,142.81,142.75,6.8976]
[1720687979418,11.59,142.81,142.77,11.59]
[1720687980039,11.59,142.82,142.75,6.8976]
[1720687980247,12.64295188,142.81,142.77,11.59]
[1720687980414,11.59,142.82,142.77,11.59]
[1720687980618,12.64279718,142.81,142.78,11.59]
[1720687980818,11.59,142.82,142.78,11.59]
[1720687981131,12.64279479,142.81,142.78,11.59]
[1720687981321,11.59,142.83,142.78,11.59]
[1720687981523,12.64274477,142.82,142.78,11.59]
[1720687981726,12.64274477,142.81,142.79,11.59]
[1720687981944,11.59,142.83,142.79,11.59]
[1720687982244,12.64274352,142.82,142.8,11.59]
[1720687982415,11.59,142.84,142.8,11.59]
[1720687982611,15.0973,142.88,142.8,11.59]
[1720687982612,12.64253833,142.83,142.8,11.59]
[1720687982817,11.59,142.85,142.8,11.59]
[1720687983050,32.86771758,142.84,142.8,11.59]
[1720687983341,12.64142827,142.83,142.8,11.59]
[1720687983537,11.59,142.85,142.8,11.59]
[1720687983746,12.6408316,142.84,142.8,11.59]
[1720687983918,12.6408316,142.83,142.8,11.59]
[1720687984231,11.59,142.85,142.81,1.39422043]
[1720687984436,12.64118989,142.84,142.81,1.39422043]
[1720687984642,12.64118989,142.83,142.81,1.39422043]
[1720687984842,11.59,142.85,142.81,1.39422043]
[1720687985034,12.64118861,142.84,142.81,1.39422043]
[1720687985225,11.59,142.85,142.81,1.39422043]
[1720687985226,12.64118861,142.83,142.81,1.39422043]
[1720687985430,11.59,142.85,142.81,1.39422043]
[1720687985733,12.6409187,142.84,142.81,1.39422043]
[1720687985917,12.6409187,142.83,142.81,1.39422043]
[1720687986122,11.59,142.85,142.81,1.39422043]
[1720687986322,12.64085123,142.84,142.81,1.39422043]
[1720687986550,12.64085123,142.83,142.81,1.39422043]
[1720687986736,11.59,142.85,142.81,1.39422043]
[1720687987046,12.6409312,142.84,142.81,1.39422043]
[1720687987250,11.59,142.85,142.81,1.39422043]
[1720687987437,12.64065875,142.84,142.81,1.39422043]
[1720687987628,11.59,142.85,142.81,1.39422043]
[1720687987830,12.64064752,142.84,142.81,1.39422043]
[1720687988053,11.59,142.85,142.81,1.39422043]
[1720687988446,12.6405113,142.84,142.81,1.39422043]
[1720687988637,12.6405113,142.83,142.81,1.39422043]
[1720687988842,12.6405113,142.84,142.81,1.39422043]
[1720687989042,12.64111985,142.83,142.81,1.39422043]
[1720687989340,11.59,142.85,142.81,1.39422043]
[1720687989541,32.86779218,142.84,142.81,1.39422043]
[1720687989732,12.64145853,142.83,142.8,11.59]
[1720687989934,11.59,142.85,142.8,11.59]
[1720687990156,32.86779295,142.84,142.8,11.59]
[1720687990455,12.64145725,142.83,142.8,11.59]
[1720687990760,12.64145725,142.82,142.79,11.76]
[1720687990939,11.59,142.82,142.75,6.5576]
[1720687991145,12.64145725,142.81,142.77,11.59]
[1720687991750,12.64145725,142.81,142.75,6.5576]
[1720687992061,6.6231,142.85,142.75,6.5576]
[1720687992062,24.23145725,142.8,142.75,18.1476]
[1720687992231,11.59,142.81,142.76,11.59]
[1720687992431,12.64382241,142.8,142.75,6.5576]
[1720687992646,6.6231,142.85,142.77,11.59]
[1720687992935,11.59,142.82,142.77,11.59]
[1720687993154,12.64321215,142.81,142.77,11.59]
[1720687993339,11.59,142.82,142.77,11.59]
[1720687993655,12.64294727,142.81,142.77,11.59]
[1720687993835,12.64294727,142.8,142.77,11.59]
[1720687994158,11.59,142.82,142.77,11.59]
[1720687994344,11.59,142.82,142.75,6.5576]
[1720687994345,11.59,142.8,142.75,6.5576]
[1720687994657,11.59,142.77,142.71,6.3228]
[1720687994833,11.59,142.76,142.71,17.9128]
[1720687995258,11.59,142.75,142.71,6.3228]
[1720687995929,11.59,142.76,142.71,17.9128]
[1720687996166,11.59,142.76,142.72,11.59]
[1720687997858,11.59,142.76,142.71,17.9128]
[1720687999640,11.59,142.76,142.71,6.3228]
[1720687999851,11.59,142.76,142.71,17.9128]
[1720688001154,18.0693,142.8,142.71,6.3228]
[1720688001381,11.59,142.73,142.68,11.59]
[1720688010667,11.59,142.73,142.67,21.7908]
[1720688010668,15.784,142.78,142.69,11.59]
[1720688010878,15.784,142.78,142.71,11.59]
[1720688011052,11.59,142.75,142.71,11.59]
[1720688014478,15.784,142.78,142.68,0.51]
[1720688014658,11.59,142.77,142.72,11.59]
[1720688014976,15.784,142.78,142.73,11.59]
[1720688015161,11.59,142.77,142.73,11.59]
[1720688015776,11.59,142.78,142.73,11.59]
[1720688016558,11.59,142.78,142.74,11.59]
[1720688017854,11.59,142.78,142.73,11.59]
[1720688018454,16.5144,142.82,142.73,11.59]
[1720688018455,16.5144,142.82,142.75,11.59]
[1720688018659,12.64496984,142.81,142.76,11.59]
[1720688018875,11.59,142.82,142.77,11.59]
[1720688020680,6.0308,142.86,142.77,11.59]
[1720688020881,11.59,142.82,142.77,11.59]
[1720688021396,6.0308,142.86,142.78,11.59]
[1720688021564,11.59,142.83,142.78,11.59]
[1720688024685,11.59,142.84,142.79,11.59]
[1720688024982,19.62623992,142.87,142.79,11.59]
[1720688025177,11.59,142.84,142.79,11.59]
[1720688025379,65.98623992,142.87,142.77,33.3099]
[1720688025380,11.59,142.82,142.77,33.3099]
[1720688027166,19.62623992,142.87,142.78,11.59]
[1720688027493,11.59,142.83,142.78,11.59]
[1720688029593,65.98623992,142.87,142.79,11.59]
[1720688029594,16.81351874,142.87,142.79,11.59]
[1720688029796,11.59,142.84,142.79,11.59]
[1720688037388,11.59,142.86,142.81,11.59]
[1720688039675,1.56521874,142.87,142.81,11.59]
[1720688039876,11.59,142.86,142.81,11.59]
[1720688040416,11.59,142.85,142.77,21.7199]
[1720688040603,11.59,142.81,142.77,21.7199]
[1720688045293,23.54083616,142.85,142.77,21.7199]
[1720688045516,11.59,142.81,142.77,21.7199]
[1720688046227,11.59,142.82,142.77,33.3099]
[1720688046400,11.59,142.82,142.77,21.7199]
[1720688046718,11.59,142.81,142.77,21.7199]
[1720688047019,11.59,142.82,142.77,33.3099]
[1720688047193,11.59,142.82,142.78,11.59]
[1720688050513,11.59,142.82,142.77,21.7199]
[1720688050715,11.59,142.82,142.76,0.17]
[1720688050716,11.59,142.8,142.76,0.17]
[1720688050901,11.59,142.8,142.75,11.59]
[1720688053019,11.59,142.79,142.74,16.6911]
[1720688053322,11.59,142.79,142.75,0.17]
[1720688054722,11.59,142.79,142.74,16.3511]
[1720688054926,11.59,142.79,142.74,27.9411]
[1720688055801,11.59,142.8,142.75,11.59]
[1720688057529,11.59,142.79,142.74,27.9411]
[1720688057913,11.59,142.8,142.75,11.59]
[1720688059603,11.59,142.82,142.78,11.59]
[1720688061827,11.59,142.83,142.78,11.59]
[1720688063924,11.59,142.82,142.78,11.59]
[1720688065818,23.54083616,142.85,142.78,11.59]
[1720688066026,11.59,142.82,142.78,11.59]
[1720688066197,11.59,142.82,142.77,11.59]
[1720688066397,11.59,142.83,142.78,11.76]
[1720688066602,11.59,142.83,142.78,11.59]
[1720688067207,11.59,142.84,142.79,11.59]
[1720688069005,7.82953616,142.85,142.79,11.59]
[1720688069200,19.41953616,142.85,142.8,11.59]
[1720688069415,11.59,142.85,142.8,11.59]
[1720688070024,15.2034,142.88,142.8,11.59]
[1720688070217,11.59,142.85,142.8,11.59]
[1720688071226,15.2034,142.88,142.8,11.59]
[1720688071531,11.59,142.85,142.8,11.59]
[1720688072335,15.2034,142.88,142.8,11.59]
[1720688072704,11.59,142.85,142.8,11.59]
[1720688072909,11.59,142.85,142.81,1.40021893]
[1720688074223,15.2034,142.88,142.81,1.40021893]
[1720688074429,11.59,142.85,142.81,1.40021893]
[1720688076133,15.2034,142.88,142.81,1.40021893]
[1720688076327,11.59,142.85,142.81,1.40021893]
[1720688077232,23.03293616,142.88,142.81,1.40021893]
[1720688077430,20.22443678,142.87,142.82,11.59]
[1720688077630,31.81443678,142.87,142.83,1.40002286]
[1720688077831,20.22443678,142.86,142.83,1.40002286]
[1720688078818,31.81443678,142.87,142.83,1.40002286]
[1720688079023,20.22443678,142.86,142.83,1.40002286]
[1720688079336,31.81443678,142.86,142.83,1.40002286]
[1720688079543,20.22443678,142.85,142.81,11.59]
[1720688079751,20.22518072,142.84,142.81,11.59]
[1720688080034,20.22518072,142.84,142.8,45.17]
[1720688080212,20.22518072,142.84,142.79,16.3152]
[1720688080419,20.22518072,142.83,142.79,27.9052]
[1720688080618,31.81518072,142.83,142.79,27.9052]
[1720688080927,11.59,142.87,142.79,16.3152]
[1720688080928,20.22675239,142.82,142.79,16.3152]
[1720688081128,11.59,142.82,142.79,16.3152]
[1720688081532,11.59,142.82,142.78,17.6305]
[1720688081533,27.2548,142.87,142.78,6.0405]
[1720688081738,27.2548,142.87,142.75,15.6625]
[1720688081739,11.59,142.8,142.75,33.2797]
[1720688082037,7.23249239,142.84,142.75,33.2797]
[1720688082218,11.59,142.81,142.76,11.59]
[1720688082412,20.22995941,142.8,142.76,11.59]
[1720688082619,20.22995941,142.8,142.77,11.59]
[1720688082926,11.59,142.82,142.77,11.59]
[1720688083120,20.23032273,142.81,142.77,11.59]
[1720688083316,20.2304287,142.8,142.76,11.59]
[1720688084614,20.2304287,142.8,142.77,11.59]
[1720688084838,20.2304287,142.81,142.77,11.59]
[1720688085038,11.59,142.82,142.77,11.59]
[1720688085215,20.22867102,142.81,142.77,11.59]
[1720688085415,20.22867102,142.81,142.76,0.17]
[1720688085640,20.22867102,142.81,142.77,11.59]
[1720688086647,31.81867102,142.81,142.76,11.93]
[1720688086818,20.22867102,142.8,142.76,11.76]
[1720688087136,11.59,142.81,142.76,11.76]
[1720688087341,20.22956665,142.8,142.76,11.76]
[1720688089040,31.81956665,142.8,142.76,0.17]
[1720688089227,11.59,142.8,142.76,0.17]
[1720688089419,11.59,142.8,142.75,33.2797]
[1720688089843,11.59,142.8,142.75,21.6897]
[1720688090046,11.59,142.8,142.75,33.2797]
[1720688091047,7.23249239,142.84,142.75,33.2797]
[1720688091243,11.59,142.8,142.75,33.2797]
[1720688091427,11.59,142.79,142.75,21.6897]
[1720688091744,7.23249239,142.84,142.75,21.6897]
[1720688091745,31.82217001,142.78,142.75,21.6897]
[1720688091941,11.59,142.78,142.75,21.6897]
[1720688092542,11.59,142.78,142.73,11.59]
[1720688093354,11.59,142.77,142.72,6.2428]
[1720688093542,11.59,142.76,142.72,17.8328]
[1720688094552,11.59,142.76,142.72,6.2428]
[1720688101242,22.5501,142.82,142.72,6.2428]
[1720688101455,11.59,142.76,142.72,6.2428]
[1720688103252,11.59,142.75,142.72,6.2428]
[1720688104833,11.59,142.75,142.71,15.1574]
[1720688106760,11.59,142.75,142.71,26.7474]
[1720688107944,46.36,142.8,142.72,11.59]
[1720688108150,11.59,142.77,142.72,11.59]
[1720688110669,25.3213199,142.82,142.76,11.59]
[1720688110670,11.59,142.8,142.76,11.59]
[1720688110870,16.0382,142.82,142.76,11.59]
[1720688111044,11.59,142.81,142.76,11.59]
[1720688112250,11.59,142.81,142.77,0.83423662]
[1720688112560,0.59704377,142.85,142.73,6.4324]
[1720688112759,11.59,142.77,142.73,6.2624]
[1720688112960,27.723,142.8,142.71,15.1574]
[1720688113169,11.59,142.74,142.71,15.1574]
[1720688115669,20.23594491,142.79,142.71,15.1574]
[1720688115856,16.133,142.8,142.71,15.1574]
[1720688116171,11.59,142.75,142.71,15.1574]
[1720688116475,62.493,142.8,142.71,15.1574]
[1720688116669,11.59,142.76,142.72,11.59]
[1720688117968,11.59,142.77,142.72,11.59]
[1720688120459,16.133,142.8,142.72,11.59]
[1720688120655,11.59,142.78,142.73,11.59]
[1720688121160,15.3889,142.83,142.74,11.59]
[1720688121360,15.3889,142.83,142.75,11.59]
[1720688121561,11.59,142.79,142.74,11.59]
[1720688121781,11.59,142.78,142.74,11.59]
[1720688121974,15.3889,142.83,142.74,11.59]
[1720688122183,11.59,142.79,142.74,11.59]
[1720688122471,15.3889,142.83,142.74,11.59]
[1720688122676,11.59,142.79,142.74,11.59]
[1720688124763,11.59,142.79,142.75,0.17]
[1720688125788,11.59,142.79,142.75,0.51]
[1720688125963,11.59,142.79,142.75,0.17]
[1720688129004,11.59,142.79,142.75,11.76]
[1720688130692,11.59,142.79,142.76,0.93660656]
[1720688131091,15.3889,142.83,142.75,11.76]
[1720688131303,11.59,142.79,142.75,11.76]
[1720688134693,11.59,142.8,142.75,0.17]
[1720688134874,11.59,142.8,142.75,11.93]
[1720688135386,15.3889,142.83,142.75,11.93]
[1720688135591,11.59,142.8,142.75,11.93]
[1720688137294,7.82953616,142.84,142.76,28.0309]
[1720688137295,11.59,142.81,142.76,28.0309]
[1720688137795,7.82953616,142.84,142.76,28.0309]
[1720688138098,11.59,142.82,142.77,11.59]
[1720688138266,11.59,142.81,142.76,16.4409]
[1720688138471,11.59,142.81,142.76,28.0309]
[1720688140172,1.56521874,142.85,142.77,11.59]
[1720688140373,11.59,142.81,142.77,11.59]
[1720688141095,1.56521874,142.85,142.77,11.59]
[1720688141295,20.22898875,142.84,142.76,16.4409]
[1720688141603,11.59,142.8,142.76,28.0309]
[1720688142097,11.59,142.8,142.76,16.4409]
[1720688142282,11.59,142.79,142.76,16.4409]
[1720688142487,11.59,142.78,142.73,6.5736]
[1720688142682,11.59,142.78,142.73,18.1636]
[1720688143074,11.59,142.77,142.73,6.5736]
[1720688143275,11.59,142.75,142.73,6.5736]
[1720688144703,11.59,142.76,142.73,6.5736]
[1720688145779,15.7596,142.82,142.73,6.5736]
[1720688145998,11.59,142.78,142.73,18.1636]
[1720688146308,11.59,142.78,142.74,11.59]
[1720688147306,15.7596,142.82,142.74,11.59]
[1720688147509,11.59,142.79,142.74,11.59]
[1720688148203,11.59,142.79,142.73,6.9136]
[1720688148204,11.59,142.79,142.75,11.59]
[1720688149310,11.59,142.79,142.74,0.34]
[1720688149515,11.59,142.79,142.75,11.59]
[1720688149698,11.59,142.79,142.74,56.93]
[1720688150293,11.59,142.79,142.75,11.59]
[1720688150812,11.59,142.8,142.75,11.59]
[1720688151031,11.59,142.81,142.76,11.59]
[1720688152088,11.59,142.8,142.75,11.59]
[1720688155413,11.59,142.79,142.74,56.93]
[1720688155799,11.59,142.78,142.74,56.93]
[1720688155998,11.59,142.79,142.74,56.93]
[1720688159520,11.59,142.8,142.75,11.59]
[1720688159902,11.59,142.8,142.74,0.17]
[1720688160200,11.59,142.79,142.74,11.59]
[1720688160997,17.62396251,142.85,142.75,11.76]
[1720688161192,11.59,142.8,142.75,11.76]
[1720688162094,17.62396251,142.85,142.76,11.59]
[1720688162297,11.59,142.83,142.78,17.9251]
[1720688162600,11.59,142.83,142.79,0.43713479]
[1720688164926,11.59,142.82,142.78,17.9251]
[1720688165126,11.59,142.82,142.78,6.3351]
[1720688165429,11.59,142.82,142.78,6.7722654]
[1720688165620,2.16226251,142.85,142.78,6.7722654]
[1720688165828,2.16226251,142.85,142.79,11.59]
[1720688166125,11.59,142.84,142.8,0.43710417]
[1720688166917,7.23249239,142.86,142.8,0.43710417]
[1720688167223,7.82953616,142.88,142.8,0.43710417]
[1720688167401,11.59,142.84,142.8,0.43710417]